{"text_format":"1","workbook":"xlsx","n_sheets":5,"sheets":["Реестр","Основные параметры","ШАБЛОН","АСР 1","АСР 2"],"not_rendered":{"charts":0,"images":0,"macros":1,"external_links":0,"defined_names":0,"comments":0,"pivot_tables":0},"unopened":[],"bounds":{"document_bytes":16777216,"sheet_cells":100000,"rows_first":2000,"rows_last":500,"rows_between":2000,"halvings":0,"cell_chars":16384,"cell_head_chars":4096},"cells_cut":0,"cells_raw":0,"read":"whole","date_system":"1900"}

{"sheet":"Реестр","index":0,"n_rows":0,"n_cols":0,"rows_kept":0,"cut":false,"hidden":false,"merged":[]}

{"sheet":"Основные параметры","index":1,"n_rows":122,"n_cols":10,"rows_kept":122,"cut":false,"hidden":false,"merged":[[18,0,18,6],[19,0,19,6],[20,0,20,6],[14,0,14,9],[15,0,15,9],[16,0,16,9],[17,0,17,6],[13,0,13,9],[0,0,0,9],[1,0,1,9],[4,0,4,9],[5,0,5,9],[6,0,6,9],[7,0,7,9],[8,0,8,9],[9,0,9,9],[10,0,10,9],[11,0,11,9],[12,0,12,9],[2,0,2,9],[3,0,3,9]]}
["Представитель застройщика или заказчика по вопросам СК (Должность, Фамилия. И.О., приказ)"]
["Инженер Сквчпаааааиврвке"]
["Представитель застройщика или заказчика  (Должность, Фамилия. И.О., приказ)"]
["Инженер ваерынн6к4ыыу"]
["Представитель лица осуществляющего строительство (Должность, Фамилия. И.О., приказ)"]
["Начальник участкаыкерывч56кнрп"]
["Представитель лица осуществляющего строительство по вопросам СК (Должность, Фамилия. И.О., приказ)"]
["Инженер Сквыпощшокпашршыфуие"]
["Представитель лица осуществляющего подготовку проектной документации (Должность, Фамилия. И.О., приказ)"]
["вед. Инженерыупруып5уынпркекекекекекекекекекекекекеке"]
["Представитель лица осуществляющего строительство, выполневшее работы (Должность, Фамилия. И.О., приказ)"]
["производитель работпппппппппппппппппп"]
["Иные представители лиц (Должность, Фамилия. И.О., приказ)"]
["начальник охраныуыууууууууууууууууууу"]
["Иные представители лиц (Должность, Фамилия. И.О., приказ)"]
["еще какой то хренееееееееееееееееееееееееее"]
["Основные сведения о предъявляемых работах"]
["Объект капитального строительства",null,null,null,null,null,null,null,"Дата заключения","Информация о проектной документации"]
[null,null,null,null,null,null,null,"АР","2017-04-17"]
[]
[]
["№ п/п","№ акта","Дата составления акта","Предъявляемая работа","Следующая работа","Примененные материалы","требования","Дата начала работ","Дата окончания работ","Информация о проектной документации"]
[1,{"$f":"IF(ISBLANK(D23),\" \",CONCATENATE($H$19,\"-\",A23))","v":"АР-1"},{"$f":"IF(ISBLANK(I23),\" \",I23)","v":"2017-03-21"},5454,"роопнп","вчипвыуп","аривкеар","2017-03-20","2017-03-21","оооооооооооо"]
[2,{"$f":"IF(ISBLANK(D24),\" \",CONCATENATE($H$19,\"-\",A24))","v":"АР-2"},{"$f":"IF(ISBLANK(I24),\" \",I24)","v":"2017-03-22"},5464,"роопнп","парвч","апрвкерквр","2017-03-21","2017-03-22","оооооооооооо"]
[3,{"$f":"IF(ISBLANK(D25),\" \",CONCATENATE($H$11,\"-\",A25))","v":" "}," "]
[4," "," "]
[5," "," "]
[6," "," "]
[7," "," "]
[8," "," "]
[9," "," "]
[10," "," "]
[11," "," "]
[12," "," "]
[13," "," "]
[14," "," "]
[15," "," "]
[16," "," "]
[17," "," "]
[18," "," "]
[19," "," "]
[20," "," "]
[21," "," "]
[22," "," "]
[23," "," "]
[24," "," "]
[25," "," "]
[26," "," "]
[27," "," "]
[28," "," "]
[29," "," "]
[30," "," "]
[31," "," "]
[32," "," "]
[33," "," "]
[34," "," "]
[35,{"$f":"IF(ISBLANK(D57),\" \",CONCATENATE($H$11,\"-\",A57))","v":" "}," "]
[36," "," "]
[37," "," "]
[38," "," "]
[39," "," "]
[40," "," "]
[41," "," "]
[42," "," "]
[43," "," "]
[44," "," "]
[45," "," "]
[46," "," "]
[47," "," "]
[48," "," "]
[49," "," "]
[50," "," "]
[51," "," "]
[52," "," "]
[53," "," "]
[54," "," "]
[55," "," "]
[56," "," "]
[57," "," "]
[58," "," "]
[59," "," "]
[60," "," "]
[61," "," "]
[62," "," "]
[63," "," "]
[64," "," "]
[65," "," "]
[66," ",{"$f":"IF(ISBLANK(I88),\" \",I88)","v":" "}]
[67,{"$f":"IF(ISBLANK(D89),\" \",CONCATENATE($H$11,\"-\",A89))","v":" "}," "]
[68," "," "]
[69," "," "]
[70," "," "]
[71," "," "]
[72," "," "]
[73," "," "]
[74," "," "]
[75," "," "]
[76," "," "]
[77," "," "]
[78," "," "]
[79," "," "]
[80," "," "]
[81," "," "]
[82," "," "]
[83," "," "]
[84," "," "]
[85," "," "]
[86," "," "]
[87," "," "]
[88," "," "]
[89," "," "]
[90," "," "]
[91," "," "]
[92," "," "]
[93," "," "]
[94," "," "]
[95," "," "]
[96," "," "]
[97," "," "]
[98," "," "]
[99,{"$f":"IF(ISBLANK(D121),\" \",CONCATENATE($H$11,\"-\",A121))","v":" "}," "]
[100," "," "]

{"sheet":"ШАБЛОН","index":2,"n_rows":124,"n_cols":14,"rows_kept":124,"cut":false,"hidden":false,"merged":[[5,0,5,18],[6,0,6,18],[7,0,7,18],[8,0,8,18],[9,0,9,18],[10,0,10,18],[0,10,0,18],[1,0,1,6],[1,7,1,18],[2,0,2,18],[3,0,3,18],[4,7,4,18],[17,0,17,18],[18,0,18,18],[19,0,19,18],[20,0,20,16],[21,0,21,11],[21,12,21,18],[11,0,11,16],[12,8,12,18],[13,0,13,18],[14,0,14,18],[15,0,15,18],[16,0,16,16],[28,0,28,18],[29,0,29,18],[30,0,30,18],[31,0,31,18],[32,0,32,18],[33,0,33,18],[22,0,22,16],[23,0,23,18],[24,0,24,18],[25,0,25,18],[26,0,26,18],[27,0,27,18],[41,0,41,16],[42,0,42,18],[43,0,43,18],[44,8,44,18],[34,0,34,18],[35,0,35,18],[36,0,36,18],[37,0,37,18],[38,0,38,18],[39,1,39,5],[53,0,53,18],[54,0,54,18],[55,0,55,18],[56,0,56,18],[57,0,57,18],[58,0,58,18],[46,0,46,18],[47,16,47,18],[48,0,48,18],[49,0,49,18],[51,0,51,18],[52,0,52,18],[63,0,63,18],[64,0,64,7],[64,8,64,18],[65,0,65,18],[66,0,66,8],[67,0,67,10],[67,11,67,18],[59,0,59,12],[59,13,59,18],[60,0,60,18],[61,0,61,18],[73,0,73,18],[74,0,74,18],[75,0,75,6],[75,7,75,18],[76,0,76,18],[77,0,77,18],[68,0,68,18],[69,0,69,18],[70,0,70,18],[71,0,71,9],[71,10,71,18],[72,0,72,18],[84,8,84,12],[84,13,84,14],[85,10,85,18],[86,10,86,18],[87,0,87,18],[88,0,88,18],[79,3,79,18],[80,0,80,18],[81,0,81,18],[82,0,82,18],[83,8,83,12],[83,13,83,14],[98,3,98,18],[99,0,99,18],[100,0,100,18],[101,0,101,18],[102,0,102,18],[89,0,89,18],[90,0,90,18],[91,10,91,18],[92,0,92,18],[93,0,93,18],[94,0,94,18],[122,0,122,18],[123,0,123,18],[39,14,39,16],[45,0,45,18],[62,0,62,18],[116,0,116,18],[117,0,117,18],[118,5,118,18],[119,0,119,18],[120,0,120,18],[121,0,121,18],[110,0,110,18],[111,0,111,18],[112,0,112,18],[113,0,113,18],[114,0,114,18],[115,0,115,18],[103,8,103,18],[104,0,104,18],[105,0,105,18],[106,10,106,18],[107,0,107,18],[108,0,108,18],[95,6,95,18]]}
[]
["Объект капитального строительства"]
[]
["(наименование, почтовый или строительный адрес объекта капитального строительства)"]
["Застройщик или технический заказчик",null,null,null,null,null,null,"АО \"Транснефть-Прикамье\""]
["(наименование, ОГРН, ИНН, номер и дата выдачи свидетельства о допуске к видам работ по строительству, реконструкции,"]
["ОГРН 1021601763820, ИНН 1645000340 "]
[" капитальному ремонту объектов капитального строительства, которые оказывают влияние на безопасность объектов, "]
["Свидетельство СРО №0057-2015-1645000340-06 от 17.04.2015г. СРО НП \"Союзнефтегазпроект\""]
["с указанием саморегулируемой организации, его выдавшей, почтовые реквизиты, тел./факс – для  юридических лиц и индивидуальных "]
[" 420061, г.Казань, ул. Ершова, д.26А тел. (843) 279-04-95"]
["предпринимателей; фамилия, имя, отчество, паспортные данные, место проживания, телефон/факс - для физических лиц)"]
["Лицо, осуществляющее строительство",null,null,null,null,null,null,null,"ООО \"КОМИС\""]
["(наименование, ОГРН, ИНН, номер и дата выдачи свидетельства о допуске к видам работ по строительству, реконструкции,"]
["ОГРН 1021200773770, ИНН 1215059180, Свид. Серия 12 №000430382 от 18.12.2002г. "]
["Свидетельство СРО №0097-2015-1215059180-06 от 27.11.2015г.  СРО НП \"Союзнефтегазпроект\". "]
[" капитальному ремонту объектов капитального строительства, которые оказывают влияние на безопасность объектов, "]
["420029, РТ, г.Казань ул. Журналистов, 6"]
["с указанием саморегулируемой организации, его выдавшей, почтовые реквизиты, тел./факс – для  юридических лиц и индивидуальных "]
["тел. +7 (843)276-94-76, +7 (843) 277-94-94, +7 (843) 277-94-77"]
["предпринимателей; фамилия, имя, отчество, паспортные данные, место проживания, телефон/факс - для физических лиц)"]
["Лицо, осуществляющее подготовку проектной документации",null,null,null,null,null,null,null,null,null,null,null,"ООО \"УралСофтПроект\""]
["(наименование, ОГРН, ИНН, номер и дата выдачи свидетельства о допуске к видам работ по строительству, реконструкции,"]
["ОГРН 1040204621797, ИНН 0278106345. Свидетельство СРО № 0017-2015-0278106345-11 от 30.10.2015г., "]
["СРО НП \"Союзнефтегазпроект\""]
[" капитальному ремонту объектов капитального строительства, которые оказывают влияние на безопасность объектов, "]
["450097, Россия, Республика Башкортостан, г.Уфа, ул. Бульвар Х.Давлетшиной 11а, оф.11, а/я90"]
["с указанием саморегулируемой организации, его выдавшей, почтовые реквизиты, тел./факс – для  юридических лиц и индивидуальных предпринимателей; фамилия, имя, отчество, паспортные данные, место проживания, телефон/факс - для физических лиц)"]
["Лицо, осуществляющее строительство, выполнившее работы, подлежащие освидетельствованию "]
["ООО \"КОМИС\""]
["(наименование, ОГРН, ИНН, номер и дата выдачи свидетельства о допуске к видам работ по строительству, реконструкции,"]
["ОГРН 1021200773770, ИНН 1215059180, Свид. Серия 12 №000430382 от 18.12.2002г. "]
["Свидетельство СРО №0097-2015-1215059180-06 от 27.11.2015г.  СРО НП \"Союзнефтегазпроект\". "]
[" капитальному ремонту объектов капитального строительства, которые оказывают влияние на безопасность объектов, "]
["420029 РТ, г.Казань ул. Журналистов, 6. тел. +7 (843)276-94-76,+7 (843)277-94-94, +7 (843)277-94-77"]
["с указанием саморегулируемой организации, его выдавшей, почтовые реквизиты, тел./факс – для  юридических лиц и индивидуальных "]
["предпринимателей; фамилия, имя, отчество, паспортные данные, место проживания, телефон/факс - для физических лиц)"]
["АКТ"]
["освидетельствования скрытых работ "]
["№",null,null,null,null,null,null,null,null,null,null,"\"",null,"\""]
[]
["Представитель застройщика или технического заказчика по вопросам строительного контроля"]
[]
["(должность, фамилия, инициалы, реквизиты документа о представительстве)"]
["Представитель застройщика или заказчика"]
[]
["(должность, фамилия, инициалы, реквизиты документа о представительстве)"]
["Представитель лица, осуществляющего строительство"]
[]
["(должность, фамилия, инициалы, реквизиты документа о представительстве)"]
["Представитель лица, осуществляющего строительство, по вопросам строительного контроля "]
[]
["(должность, фамилия, инициалы, реквизиты документа о представительстве)"]
["Представитель лица, осуществляющего подготовку проектной документации "]
[]
["(должность, фамилия, инициалы, реквизиты документа о представительстве)"]
["Представитель лица, выполнившего работы, подлежащие освидетельствованию"]
[]
["(должность, фамилия, инициалы, реквизиты документа о представительстве)"]
["а также иные представители лиц, участвующих в освидетельствовании:"]
[]
["(должность, фамилия, инициалы, реквизиты документа о представительстве)"]
[]
["(должность, фамилия, инициалы, реквизиты документа о представительстве)"]
["произвели осмотр работ, выполненных",null,null,null,null,null,null,null,"ООО \"КОМИС\""]
["                                                                              (наименование лица, осуществляющего строительство, выполнившего работы )"]
["и составили настоящий акт о нижеследующем:"]
["1. К освидетельствованию предъявлены следующие работы"]
[]
[]
["(наименование скрытых работ)"]
["2. Работы выполнены по проектной документации"]
[]
["(номер, другие реквизиты чертежа, наименование проектной и/или рабочей документации,"]
["сведения о лицах, осуществляющих подготовку раздела  проектной и/или рабочей документации)"]
["3. При выполнении работ применены"]
[]
["(изделий) со ссылкой на сертификаты или другие документы, подтверждающие качество)"]
["4. Предъявлены документы, подтверждающие соответствие работ предъявляемым к ним "]
["требованиям:"]
[]
["(исполнительные схемы и чертежи, результаты экспертиз, обследований, лабораторных и иных"]
["испытаний выполненных работ, проведенных в процессе строительного контроля.)"]
["5. Даты: начала работ",null,null,null,null,"\"",null,"\""]
[null,"окончания работ",null,null,null,"\"",null,"\""]
["6. Работы выполнены в соответствии с проектом",null,null,null,null,null,null,null,null,null,{"$f":"K72","v":0}]
[null,null,null,null,null,null,null,null,null,null,"(указываются наименование, статьи) "]
[{"$f":"A73","v":0}]
["СП 70.13330.2012 \"НЕСУЩИЕ И ОГРАЖДАЮЩИЕ КОНСТРУКЦИИ\" "]
[]
["(пункты) технического регламента, иных нормативных правовых актов, (разделы проектной и/или рабочей документации)"]
["7. Разрешается производство последующих работ по "]
[]
[]
["наименование работ,  конструкций, участков сетей инженерно-технического обеспечения)"]
["Дополнительные сведения ",null,null,null,null,null,"н/п"]
["Акт составлен в",null,null,null,2,"экземплярах."]
[]
["Приложения:",null,null,{"$f":"D80","v":0}]
[{"$f":"A81","v":0}]
["Представитель застройщика или технического заказчика по вопросам строительного контроля"]
[]
["(должность, фамилия, инициалы, подпись)"]
["Представитель застройщика или заказчика"]
[{"$f":"A46","v":0}]
["(должность, фамилия, инициалы, подпись)"]
["Представитель лица, осуществляющего строительство"]
[]
["(должность, фамилия, инициалы, подпись)"]
["Представитель лица, осуществляющего строительство, по вопросам строительного контроля"]
[]
["(должность, фамилия, инициалы, подпись)"]
["Представитель лица, осуществляющего подготовку проектной документации"]
[]
["(должность, фамилия, инициалы, подпись)"]
["Представитель лица, выполнившего работы, подлежащие освидетельствованию"]
[]
["(должность, фамилия, инициалы, подпись)"]
["Представители иных лиц:"]
["(должность, фамилия, инициалы, подпись)"]
[]
["(должность, фамилия, инициалы, подпись)"]
[]
["(должность, фамилия, инициалы, подпись)"]

{"sheet":"АСР 1","index":3,"n_rows":124,"n_cols":14,"rows_kept":124,"cut":false,"hidden":false,"merged":[[118,5,118,18],[119,0,119,18],[120,0,120,18],[121,0,121,18],[122,0,122,18],[123,0,123,18],[112,0,112,18],[113,0,113,18],[114,0,114,18],[115,0,115,18],[116,0,116,18],[117,0,117,18],[105,0,105,18],[106,10,106,18],[107,0,107,18],[108,0,108,18],[110,0,110,18],[111,0,111,18],[99,0,99,18],[100,0,100,18],[101,0,101,18],[102,0,102,18],[103,8,103,18],[104,0,104,18],[91,10,91,18],[92,0,92,18],[93,0,93,18],[94,0,94,18],[95,6,95,18],[98,3,98,18],[85,10,85,18],[86,10,86,18],[87,0,87,18],[88,0,88,18],[89,0,89,18],[90,0,90,18],[81,0,81,18],[82,0,82,18],[83,8,83,12],[83,13,83,14],[84,8,84,12],[84,13,84,14],[75,0,75,6],[75,7,75,18],[76,0,76,18],[77,0,77,18],[79,3,79,18],[80,0,80,18],[70,0,70,18],[71,0,71,9],[71,10,71,18],[72,0,72,18],[73,0,73,18],[74,0,74,18],[65,0,65,18],[66,0,66,8],[67,0,67,10],[67,11,67,18],[68,0,68,18],[69,0,69,18],[60,0,60,18],[61,0,61,18],[62,0,62,18],[63,0,63,18],[64,0,64,7],[64,8,64,18],[54,0,54,18],[55,0,55,18],[56,0,56,18],[57,0,57,18],[58,0,58,18],[59,0,59,12],[59,13,59,18],[47,16,47,18],[48,0,48,18],[49,0,49,18],[51,0,51,18],[52,0,52,18],[53,0,53,18],[41,0,41,16],[42,0,42,18],[43,0,43,18],[44,8,44,18],[45,0,45,18],[46,0,46,18],[34,0,34,18],[35,0,35,18],[36,0,36,18],[37,0,37,18],[38,0,38,18],[39,1,39,5],[39,14,39,16],[28,0,28,18],[29,0,29,18],[30,0,30,18],[31,0,31,18],[32,0,32,18],[33,0,33,18],[22,0,22,16],[23,0,23,18],[24,0,24,18],[25,0,25,18],[26,0,26,18],[27,0,27,18],[17,0,17,18],[18,0,18,18],[19,0,19,18],[20,0,20,16],[21,0,21,11],[21,12,21,18],[11,0,11,16],[12,8,12,18],[13,0,13,18],[14,0,14,18],[15,0,15,18],[16,0,16,16],[5,0,5,18],[6,0,6,18],[7,0,7,18],[8,0,8,18],[9,0,9,18],[10,0,10,18],[0,10,0,18],[1,0,1,6],[1,7,1,18],[2,0,2,18],[3,0,3,18],[4,7,4,18]]}
[]
["Объект капитального строительства"]
[]
["(наименование, почтовый или строительный адрес объекта капитального строительства)"]
["Застройщик или технический заказчик",null,null,null,null,null,null,"АО \"Транснефть-Прикамье\""]
["(наименование, ОГРН, ИНН, номер и дата выдачи свидетельства о допуске к видам работ по строительству, реконструкции,"]
["ОГРН 1021601763820, ИНН 1645000340 "]
[" капитальному ремонту объектов капитального строительства, которые оказывают влияние на безопасность объектов, "]
["Свидетельство СРО №0057-2015-1645000340-06 от 17.04.2015г. СРО НП \"Союзнефтегазпроект\""]
["с указанием саморегулируемой организации, его выдавшей, почтовые реквизиты, тел./факс – для  юридических лиц и индивидуальных "]
[" 420061, г.Казань, ул. Ершова, д.26А тел. (843) 279-04-95"]
["предпринимателей; фамилия, имя, отчество, паспортные данные, место проживания, телефон/факс - для физических лиц)"]
["Лицо, осуществляющее строительство",null,null,null,null,null,null,null,"ООО \"КОМИС\""]
["(наименование, ОГРН, ИНН, номер и дата выдачи свидетельства о допуске к видам работ по строительству, реконструкции,"]
[]
[]
[" капитальному ремонту объектов капитального строительства, которые оказывают влияние на безопасность объектов, "]
["420029, РТ, г.Казань ул. Журналистов, 6"]
["с указанием саморегулируемой организации, его выдавшей, почтовые реквизиты, тел./факс – для  юридических лиц и индивидуальных "]
["тел. +7 (843)276-94-76, +7 (843) 277-94-94, +7 (843) 277-94-77"]
["предпринимателей; фамилия, имя, отчество, паспортные данные, место проживания, телефон/факс - для физических лиц)"]
["Лицо, осуществляющее подготовку проектной документации",null,null,null,null,null,null,null,null,null,null,null,"ООО \"УралСофтПроект\""]
["(наименование, ОГРН, ИНН, номер и дата выдачи свидетельства о допуске к видам работ по строительству, реконструкции,"]
["ОГРН 1040204621797, ИНН 0278106345. Свидетельство СРО № 0017-2015-0278106345-11 от 30.10.2015г., "]
["СРО НП \"Союзнефтегазпроект\""]
[" капитальному ремонту объектов капитального строительства, которые оказывают влияние на безопасность объектов, "]
["450097, Россия, Республика Башкортостан, г.Уфа, ул. Бульвар Х.Давлетшиной 11а, оф.11, а/я90"]
["с указанием саморегулируемой организации, его выдавшей, почтовые реквизиты, тел./факс – для  юридических лиц и индивидуальных предпринимателей; фамилия, имя, отчество, паспортные данные, место проживания, телефон/факс - для физических лиц)"]
["Лицо, осуществляющее строительство, выполнившее работы, подлежащие освидетельствованию "]
["ООО \"КОМИС\""]
["(наименование, ОГРН, ИНН, номер и дата выдачи свидетельства о допуске к видам работ по строительству, реконструкции,"]
["ОГРН 1021200773770, ИНН 1215059180, Свид. Серия 12 №000430382 от 18.12.2002г. "]
["Свидетельство СРО №0097-2015-1215059180-06 от 27.11.2015г.  СРО НП \"Союзнефтегазпроект\". "]
[" капитальному ремонту объектов капитального строительства, которые оказывают влияние на безопасность объектов, "]
["420029 РТ, г.Казань ул. Журналистов, 6. тел. +7 (843)276-94-76,+7 (843)277-94-94, +7 (843)277-94-77"]
["с указанием саморегулируемой организации, его выдавшей, почтовые реквизиты, тел./факс – для  юридических лиц и индивидуальных "]
["предпринимателей; фамилия, имя, отчество, паспортные данные, место проживания, телефон/факс - для физических лиц)"]
["АКТ"]
["освидетельствования скрытых работ "]
["№","АР-1",null,null,null,null,null,null,null,null,null,"\"",null,"\""]
[]
["Представитель застройщика или технического заказчика по вопросам строительного контроля"]
["Инженер Сквчпаааааиврвке"]
[]
["Представитель застройщика или заказчика"]
[]
["(должность, фамилия, инициалы, реквизиты документа о представительстве)"]
["Представитель лица, осуществляющего строительство"]
[]
["(должность, фамилия, инициалы, реквизиты документа о представительстве)"]
["Представитель лица, осуществляющего строительство, по вопросам строительного контроля "]
[]
["(должность, фамилия, инициалы, реквизиты документа о представительстве)"]
["Представитель лица, осуществляющего подготовку проектной документации "]
[]
["(должность, фамилия, инициалы, реквизиты документа о представительстве)"]
["Представитель лица, выполнившего работы, подлежащие освидетельствованию"]
[]
["(должность, фамилия, инициалы, реквизиты документа о представительстве)"]
["а также иные представители лиц, участвующих в освидетельствовании:"]
[]
["(должность, фамилия, инициалы, реквизиты документа о представительстве)"]
[]
["(должность, фамилия, инициалы, реквизиты документа о представительстве)"]
["произвели осмотр работ, выполненных",null,null,null,null,null,null,null,"ООО \"КОМИС\""]
["                                                                              (наименование лица, осуществляющего строительство, выполнившего работы )"]
["и составили настоящий акт о нижеследующем:"]
["1. К освидетельствованию предъявлены следующие работы"]
[]
[]
["(наименование скрытых работ)"]
["2. Работы выполнены по проектной документации"]
[]
["(номер, другие реквизиты чертежа, наименование проектной и/или рабочей документации,"]
["сведения о лицах, осуществляющих подготовку раздела  проектной и/или рабочей документации)"]
["3. При выполнении работ применены"]
[]
["(изделий) со ссылкой на сертификаты или другие документы, подтверждающие качество)"]
["4. Предъявлены документы, подтверждающие соответствие работ предъявляемым к ним "]
["требованиям:"]
[]
["(исполнительные схемы и чертежи, результаты экспертиз, обследований, лабораторных и иных"]
["испытаний выполненных работ, проведенных в процессе строительного контроля.)"]
["5. Даты: начала работ",null,null,null,null,"\"",null,"\""]
[null,"окончания работ",null,null,null,"\"",null,"\""]
["6. Работы выполнены в соответствии с проектом",null,null,null,null,null,null,null,null,null,{"$f":"K72","v":0}]
[null,null,null,null,null,null,null,null,null,null,"(указываются наименование, статьи) "]
[{"$f":"A73","v":0}]
["СП 70.13330.2012 \"НЕСУЩИЕ И ОГРАЖДАЮЩИЕ КОНСТРУКЦИИ\" "]
[]
["(пункты) технического регламента, иных нормативных правовых актов, (разделы проектной и/или рабочей документации)"]
["7. Разрешается производство последующих работ по "]
[]
[]
["наименование работ,  конструкций, участков сетей инженерно-технического обеспечения)"]
["Дополнительные сведения ",null,null,null,null,null,21]
["Акт составлен в",null,null,null,2,"экземплярах."]
[]
["Приложения:",null,null,{"$f":"D80","v":0}]
[{"$f":"A81","v":0}]
["Представитель застройщика или технического заказчика по вопросам строительного контроля"]
[]
["(должность, фамилия, инициалы, подпись)"]
["Представитель застройщика или заказчика"]
[{"$f":"A46","v":0}]
["(должность, фамилия, инициалы, подпись)"]
[]
[]
[]
["Представитель лица, осуществляющего строительство, по вопросам строительного контроля"]
[]
["(должность, фамилия, инициалы, подпись)"]
["Представитель лица, осуществляющего подготовку проектной документации"]
[]
["(должность, фамилия, инициалы, подпись)"]
["Представитель лица, выполнившего работы, подлежащие освидетельствованию"]
[]
["(должность, фамилия, инициалы, подпись)"]
["Представители иных лиц:"]
["(должность, фамилия, инициалы, подпись)"]
[]
["(должность, фамилия, инициалы, подпись)"]
[]
["(должность, фамилия, инициалы, подпись)"]

{"sheet":"АСР 2","index":4,"n_rows":124,"n_cols":14,"rows_kept":124,"cut":false,"hidden":false,"merged":[[118,5,118,18],[119,0,119,18],[120,0,120,18],[121,0,121,18],[122,0,122,18],[123,0,123,18],[112,0,112,18],[113,0,113,18],[114,0,114,18],[115,0,115,18],[116,0,116,18],[117,0,117,18],[105,0,105,18],[106,10,106,18],[107,0,107,18],[108,0,108,18],[110,0,110,18],[111,0,111,18],[99,0,99,18],[100,0,100,18],[101,0,101,18],[102,0,102,18],[103,8,103,18],[104,0,104,18],[91,10,91,18],[92,0,92,18],[93,0,93,18],[94,0,94,18],[95,6,95,18],[98,3,98,18],[85,10,85,18],[86,10,86,18],[87,0,87,18],[88,0,88,18],[89,0,89,18],[90,0,90,18],[81,0,81,18],[82,0,82,18],[83,8,83,12],[83,13,83,14],[84,8,84,12],[84,13,84,14],[75,0,75,6],[75,7,75,18],[76,0,76,18],[77,0,77,18],[79,3,79,18],[80,0,80,18],[70,0,70,18],[71,0,71,9],[71,10,71,18],[72,0,72,18],[73,0,73,18],[74,0,74,18],[65,0,65,18],[66,0,66,8],[67,0,67,10],[67,11,67,18],[68,0,68,18],[69,0,69,18],[60,0,60,18],[61,0,61,18],[62,0,62,18],[63,0,63,18],[64,0,64,7],[64,8,64,18],[54,0,54,18],[55,0,55,18],[56,0,56,18],[57,0,57,18],[58,0,58,18],[59,0,59,12],[59,13,59,18],[47,16,47,18],[48,0,48,18],[49,0,49,18],[51,0,51,18],[52,0,52,18],[53,0,53,18],[41,0,41,16],[42,0,42,18],[43,0,43,18],[44,8,44,18],[45,0,45,18],[46,0,46,18],[34,0,34,18],[35,0,35,18],[36,0,36,18],[37,0,37,18],[38,0,38,18],[39,1,39,5],[39,14,39,16],[28,0,28,18],[29,0,29,18],[30,0,30,18],[31,0,31,18],[32,0,32,18],[33,0,33,18],[22,0,22,16],[23,0,23,18],[24,0,24,18],[25,0,25,18],[26,0,26,18],[27,0,27,18],[17,0,17,18],[18,0,18,18],[19,0,19,18],[20,0,20,16],[21,0,21,11],[21,12,21,18],[11,0,11,16],[12,8,12,18],[13,0,13,18],[14,0,14,18],[15,0,15,18],[16,0,16,16],[5,0,5,18],[6,0,6,18],[7,0,7,18],[8,0,8,18],[9,0,9,18],[10,0,10,18],[0,10,0,18],[1,0,1,6],[1,7,1,18],[2,0,2,18],[3,0,3,18],[4,7,4,18]]}
[]
["Объект капитального строительства"]
[]
["(наименование, почтовый или строительный адрес объекта капитального строительства)"]
["Застройщик или технический заказчик",null,null,null,null,null,null,"АО \"Транснефть-Прикамье\""]
["(наименование, ОГРН, ИНН, номер и дата выдачи свидетельства о допуске к видам работ по строительству, реконструкции,"]
["ОГРН 1021601763820, ИНН 1645000340 "]
[" капитальному ремонту объектов капитального строительства, которые оказывают влияние на безопасность объектов, "]
["Свидетельство СРО №0057-2015-1645000340-06 от 17.04.2015г. СРО НП \"Союзнефтегазпроект\""]
["с указанием саморегулируемой организации, его выдавшей, почтовые реквизиты, тел./факс – для  юридических лиц и индивидуальных "]
[" 420061, г.Казань, ул. Ершова, д.26А тел. (843) 279-04-95"]
["предпринимателей; фамилия, имя, отчество, паспортные данные, место проживания, телефон/факс - для физических лиц)"]
["Лицо, осуществляющее строительство",null,null,null,null,null,null,null,"ООО \"КОМИС\""]
["(наименование, ОГРН, ИНН, номер и дата выдачи свидетельства о допуске к видам работ по строительству, реконструкции,"]
[]
[]
[" капитальному ремонту объектов капитального строительства, которые оказывают влияние на безопасность объектов, "]
["420029, РТ, г.Казань ул. Журналистов, 6"]
["с указанием саморегулируемой организации, его выдавшей, почтовые реквизиты, тел./факс – для  юридических лиц и индивидуальных "]
["тел. +7 (843)276-94-76, +7 (843) 277-94-94, +7 (843) 277-94-77"]
["предпринимателей; фамилия, имя, отчество, паспортные данные, место проживания, телефон/факс - для физических лиц)"]
["Лицо, осуществляющее подготовку проектной документации",null,null,null,null,null,null,null,null,null,null,null,"ООО \"УралСофтПроект\""]
["(наименование, ОГРН, ИНН, номер и дата выдачи свидетельства о допуске к видам работ по строительству, реконструкции,"]
["ОГРН 1040204621797, ИНН 0278106345. Свидетельство СРО № 0017-2015-0278106345-11 от 30.10.2015г., "]
["СРО НП \"Союзнефтегазпроект\""]
[" капитальному ремонту объектов капитального строительства, которые оказывают влияние на безопасность объектов, "]
["450097, Россия, Республика Башкортостан, г.Уфа, ул. Бульвар Х.Давлетшиной 11а, оф.11, а/я90"]
["с указанием саморегулируемой организации, его выдавшей, почтовые реквизиты, тел./факс – для  юридических лиц и индивидуальных предпринимателей; фамилия, имя, отчество, паспортные данные, место проживания, телефон/факс - для физических лиц)"]
["Лицо, осуществляющее строительство, выполнившее работы, подлежащие освидетельствованию "]
["ООО \"КОМИС\""]
["(наименование, ОГРН, ИНН, номер и дата выдачи свидетельства о допуске к видам работ по строительству, реконструкции,"]
["ОГРН 1021200773770, ИНН 1215059180, Свид. Серия 12 №000430382 от 18.12.2002г. "]
["Свидетельство СРО №0097-2015-1215059180-06 от 27.11.2015г.  СРО НП \"Союзнефтегазпроект\". "]
[" капитальному ремонту объектов капитального строительства, которые оказывают влияние на безопасность объектов, "]
["420029 РТ, г.Казань ул. Журналистов, 6. тел. +7 (843)276-94-76,+7 (843)277-94-94, +7 (843)277-94-77"]
["с указанием саморегулируемой организации, его выдавшей, почтовые реквизиты, тел./факс – для  юридических лиц и индивидуальных "]
["предпринимателей; фамилия, имя, отчество, паспортные данные, место проживания, телефон/факс - для физических лиц)"]
["АКТ"]
["освидетельствования скрытых работ "]
["№","АР-2",null,null,null,null,null,null,null,null,null,"\"",null,"\""]
[]
["Представитель застройщика или технического заказчика по вопросам строительного контроля"]
["Инженер Сквчпаааааиврвке"]
[]
["Представитель застройщика или заказчика"]
[]
["(должность, фамилия, инициалы, реквизиты документа о представительстве)"]
["Представитель лица, осуществляющего строительство"]
[]
["(должность, фамилия, инициалы, реквизиты документа о представительстве)"]
["Представитель лица, осуществляющего строительство, по вопросам строительного контроля "]
[]
["(должность, фамилия, инициалы, реквизиты документа о представительстве)"]
["Представитель лица, осуществляющего подготовку проектной документации "]
[]
["(должность, фамилия, инициалы, реквизиты документа о представительстве)"]
["Представитель лица, выполнившего работы, подлежащие освидетельствованию"]
[]
["(должность, фамилия, инициалы, реквизиты документа о представительстве)"]
["а также иные представители лиц, участвующих в освидетельствовании:"]
[]
["(должность, фамилия, инициалы, реквизиты документа о представительстве)"]
[]
["(должность, фамилия, инициалы, реквизиты документа о представительстве)"]
["произвели осмотр работ, выполненных",null,null,null,null,null,null,null,"ООО \"КОМИС\""]
["                                                                              (наименование лица, осуществляющего строительство, выполнившего работы )"]
["и составили настоящий акт о нижеследующем:"]
["1. К освидетельствованию предъявлены следующие работы"]
[]
[]
["(наименование скрытых работ)"]
["2. Работы выполнены по проектной документации"]
[]
["(номер, другие реквизиты чертежа, наименование проектной и/или рабочей документации,"]
["сведения о лицах, осуществляющих подготовку раздела  проектной и/или рабочей документации)"]
["3. При выполнении работ применены"]
[]
["(изделий) со ссылкой на сертификаты или другие документы, подтверждающие качество)"]
["4. Предъявлены документы, подтверждающие соответствие работ предъявляемым к ним "]
["требованиям:"]
[]
["(исполнительные схемы и чертежи, результаты экспертиз, обследований, лабораторных и иных"]
["испытаний выполненных работ, проведенных в процессе строительного контроля.)"]
["5. Даты: начала работ",null,null,null,null,"\"",null,"\""]
[null,"окончания работ",null,null,null,"\"",null,"\""]
["6. Работы выполнены в соответствии с проектом",null,null,null,null,null,null,null,null,null,{"$f":"K72","v":0}]
[null,null,null,null,null,null,null,null,null,null,"(указываются наименование, статьи) "]
[{"$f":"A73","v":0}]
["СП 70.13330.2012 \"НЕСУЩИЕ И ОГРАЖДАЮЩИЕ КОНСТРУКЦИИ\" "]
[]
["(пункты) технического регламента, иных нормативных правовых актов, (разделы проектной и/или рабочей документации)"]
["7. Разрешается производство последующих работ по "]
[]
[]
["наименование работ,  конструкций, участков сетей инженерно-технического обеспечения)"]
["Дополнительные сведения ",null,null,null,null,null,22]
["Акт составлен в",null,null,null,2,"экземплярах."]
[]
["Приложения:",null,null,{"$f":"D80","v":0}]
[{"$f":"A81","v":0}]
["Представитель застройщика или технического заказчика по вопросам строительного контроля"]
[]
["(должность, фамилия, инициалы, подпись)"]
["Представитель застройщика или заказчика"]
[{"$f":"A46","v":0}]
["(должность, фамилия, инициалы, подпись)"]
[]
[]
[]
["Представитель лица, осуществляющего строительство, по вопросам строительного контроля"]
[]
["(должность, фамилия, инициалы, подпись)"]
["Представитель лица, осуществляющего подготовку проектной документации"]
[]
["(должность, фамилия, инициалы, подпись)"]
["Представитель лица, выполнившего работы, подлежащие освидетельствованию"]
[]
["(должность, фамилия, инициалы, подпись)"]
["Представители иных лиц:"]
["(должность, фамилия, инициалы, подпись)"]
[]
["(должность, фамилия, инициалы, подпись)"]
[]
["(должность, фамилия, инициалы, подпись)"]